Cogmind - Beta 13 @@@ ROGUE MODE // 2024.04.20 @ 13:48:56 Player: Elliott Result: Destroyed by G-34 Mercenary with Small Laser Performance ------------- Evolutions (1) 500 Regions Visited (2) 400 Robots Destroyed (9) 45 Value Destroyed (376) 376 Prototype IDs (0) 0 Alien Tech Used (0) 0 Bonus (200) 200 TOTAL SCORE: 1521 Bonus ------- Pacifist 200 Cogmind --------- Core Integrity 0/400 Matter 300/300 Energy 84/100 System Corruption 3% Temperature Cool (6) Movement Core (50) Location -9/Materials Parts ------- > --- POWER (1) -------- (None) > --- PROPULSION (4) --- (None) > --- UTILITY (2) ------ (None) > --- WEAPON (2) ------- (None) > --- INVENTORY (5) ---- High-powered Tractor Beam Small Laser Small Laser Small Laser Mini Grenade Launcher Peak State ------------ > --- POWER ------------ Light Nuclear Core > --- PROPULSION ------- Aluminum Leg Aluminum Leg Aluminum Leg Aluminum Leg > --- UTILITY ---------- Cooling System High-powered Tractor Beam > --- WEAPON ----------- Small Laser Mini Grenade Launcher > --- INVENTORY -------- Medium Laser [Rating: 14] Favorites ----------- Power Light Nuclear Core Engine Ion Engine Power Core Light Nuclear Core Propulsion Aluminum Leg Leg Aluminum Leg Utility Cooling System Device Cooling System Weapon Small Laser Energy Gun Small Laser Ballistic Gun Light Assault Rifle Launcher Mini Grenade Launcher Build | -11 -10 -9 ------- Run | Yrd Mat Mat Slots Evolved 2 | . . 2 Power . | . . . Propulsion 2 | . . 2 Utility . | . . . Weapon . | . . . Parts Attached 23 | 5 . 18 Power 4 | 1 . 3 Engine 2 | 1 . 1 Core 2 | . . 2 Reactor . | . . . Propulsion 8 | 2 . 6 Treads . | . . . Leg 8 | 2 . 6 Wheel . | . . . Hover . | . . . Flight . | . . . Utility 4 | . . 4 Device 4 | . . 4 Storage . | . . . Processor . | . . . Hackware . | . . . Protection . | . . . Artifact . | . . . Weapon 7 | 2 . 5 Energy Gun 5 | 1 . 4 Energy Cannon . | . . . Ballistic Gun 1 | 1 . . Ballistic Cannon . | . . . Launcher 1 | . . 1 Special Weapon . | . . . Impact Weapon . | . . . Slashing Weapon . | . . . Piercing Weapon . | . . . Special Melee Weapon . | . . . Unidentified Prototypes . | . . . Parts Lost 13 | . 2 11 Power 3 | . 1 2 Propulsion 5 | . . 5 Utility 2 | . . 2 Weapon 3 | . 1 2 Highest Loss Streak 8 | . 1 8 To Critical Strikes . | . . . Average Slot Usage (%) 73 | . 65 75 Engine 3 | . 8 2 Core 4 | . . 5 Leg 33 | . 28 35 Device 8 | . . 11 Energy Gun 18 | . 14 19 Ballistic Gun 2 | . 14 . Naked Turns 12 | . . 12 Heaviest Build 15 | 8 8 15 Greatest Support 40 | 20 20 40 Greatest Overweight (x) 4 | . . 4 Average Overweight (x) . | . . . Largest Inventory Capacity 5 | 5 5 5 Average Capacity 5 | 5 5 5 Most Carried 5 | 1 1 5 Average Carried 2 | . 1 2 Final Capacity 5 | 5 5 5 Final Carried 5 | 1 1 5 Class Distribution -------------------- 52% | Scavenger-Mutant 47% | Mutant Dominant Class ---------------- Mutant | -10/Materials Scavenger-Mutant | -9/Materials Resources | -11 -10 -9 ----------- Run | Yrd Mat Mat Matter Collected 416 | 250 1 165 Remotely 44 | . . 44 Salvage Created 440 | . . 440 Parts 18 | . . 18 Haulers Intercepted . | . . . Recyclers Shooed . | . . . Parts Field Recycled . | . . . Retrieved Matter . | . . . Parts Self-Destructed . | . . . Prevented . | . . . Kills | -11 -10 -9 ------- Run | Yrd Mat Mat Combat Hostiles Destroyed 9 | . . 9 Guns 9 | . . 9 Classes Destroyed 3 | . . 3 Grunt 6 | . . 6 Brawler 1 | . . 1 Sentry 2 | . . 2 Best Kill Streak 4 | . . 4 Combat Bots Only 4 | . . 4 Max Kills in Single Turn 1 | . . 1 Gunslinging . | . . . Exploded . | . . . Melee . | . . . Uniques/NPCs Destroyed . | . . . Combat | -11 -10 -9 -------- Run | Yrd Mat Mat Hostile Shots Fired 167 | . 64 103 Missed 59 | . 30 29 Damage Taken 1665 | . 399 1266 Core 509 | . 109 400 Absorbed by Shields . | . . . Core Remaining (%) 78 | 100 56 . Volleys Fired 33 | . 1 32 Largest 2 | . 2 2 Hottest 100 | . 70 100 Shots Fired 60 | . 2 58 Gun 60 | . 2 58 Cannon . | . . . Launcher . | . . . Special . | . . . Kinetic 1 | . 1 . Thermal 59 | . 1 58 Explosive . | . . . Electromagnetic . | . . . Robot Hit Streak 23 | . 2 23 Robot Miss Streak 2 | . . 2 Penetration Max . | . . . Secondary Targets 1 | . . 1 Max Gunslinging Chain 1 | . . 1 Shots Hit Robots 51 | . 2 49 Core Hits 20 | . . 20 Critical Kills . | . . . Critical Parts Destroyed . | . . . Critical Strikes 4 | . . 4 Burn 4 | . . 4 Melee Attacks . | . . . Impact . | . . . Slashing . | . . . Piercing . | . . . Sneak Attacks . | . . . Combat Hostiles . | . . . Follow-up Attacks . | . . . Damage Inflicted 633 | . 25 608 Guns 601 | . 18 583 Cannons . | . . . Explosions 15 | . . 15 Melee . | . . . Ramming 17 | . 7 10 Kinetic 6 | . 6 . Thermal 595 | . 12 583 Explosive 15 | . . 15 Electromagnetic . | . . . Impact . | . . . Slashing . | . . . Piercing . | . . . Highest Corruption 3 | . . 3 Average Corruption 3 | . . 3 Corruption Purged . | . . . Corruption Blocked . | . . . Effects 3 | . . 3 Message Errors 2 | . . 2 Parts Rejected 1 | . . 1 Overload Shots . | . . . Overflow Damage 72 | . . 72 Projectiles . | . . . Explosions 72 | . . 72 Melee . | . . . Knockbacks . | . . . Impact . | . . . Kinetic . | . . . Secondary . | . . . Self-Inflicted Damage 229 | . . 229 Shots 2 | . . 2 Rammed 1 | . . 1 Targets Rammed 4 | . 2 2 Kicked 3 | . 2 1 Crushed . | . . . Highest Temperature 348 | . 30 348 Average Temperature 134 | . 14 140 Received Heat Transfer 696 | . 228 468 Effects 3 | . . 3 Shutdowns 1 | . . 1 Energy Bleed 2 | . . 2 Siege Activations . | . . . Robots Corrupted . | . . . Combat Hostiles . | . . . Parts Fried . | . . . Impact Corruptions . | . . . Robots Melted . | . . . Combat Hostiles . | . . . Parts Melted 5 | . . 5 Heat Transferred 1918 | . 37 1881 Parts Sabotaged . | . . . Parts Stolen . | . . . Parts Stripped . | . . . Power Chain Reactions . | . . . Alert | -11 -10 -9 ------- Run | Yrd Mat Mat Peak Influence 216 | . 25 216 Initial 5 | . . 5 Average 88 | . 16 114 Maximum Alert Level 1 | . . 1 Low Security (%) 90 | 100 100 87 Level 1 9 | . . 12 Level 2 . | . . . Level 3 . | . . . Level 4 . | . . . Level 5 . | . . . High Security . | . . . Max Security . | . . . Squads Dispatched 3 | . 2 1 Investigation . | . . . Extermination . | . . . Reinforcement 3 | . 2 1 Assault . | . . . Garrison . | . . . Intercept . | . . . Searches Triggered . | . . . Construction Impeded . | . . . Haulers Reinforced . | . . . Active Scanning Responses . | . . . Cargo Convoy Interrupts . | . . . Stealth | -11 -10 -9 --------- Run | Yrd Mat Mat Distress Signals 3 | . 1 2 Communications Jammed . | . . . Distress Signals . | . . . Times Spotted 28 | . 9 19 Peak Tracking Total 7 | . 7 7 Tactical Retreats 1 | . . 1 Traps | -11 -10 -9 ------- Run | Yrd Mat Mat Traps Triggered . | . . . Indirectly . | . . . Trap Hack Attempts . | . . . Triggered . | . . . Disarmed . | . . . Reprogrammed . | . . . Reused . | . . . Traps Extracted . | . . . Installed . | . . . Triggered . | . . . Machines | -11 -10 -9 ---------- Run | Yrd Mat Mat Machines Disabled 2 | . . 2 Max in Single Turn 2 | . . 2 Machines Repaired . | . . . Machines Dismantled . | . . . Machines Sabotaged . | . . . Overloaded Fab Kills . | . . . Hacking | -11 -10 -9 --------- Run | Yrd Mat Mat Machines Accessed 2 | . 1 1 Terminals 2 | . 1 1 Fabricators . | . . . Repair Stations . | . . . Recycling Units . | . . . Scanalyzers . | . . . Garrison Access . | . . . Total Hacks 4 | . 1 3 Successful 4 | . 1 3 Failed . | . . . Catastrophic . | . . . Database Lockouts . | . . . Manual . | . . . Terminals 4 | . 1 3 Fabricators . | . . . Repair Stations . | . . . Recycling Units . | . . . Scanalyzers . | . . . Garrison Access . | . . . Terminal Hacks 4 | . 1 3 Branch Access Points 1 | . . 1 Locate Traps 1 | . . 1 Investigation Status 1 | . 1 . Reinforcement Status 1 | . . 1 Fabricator Hacks . | . . . Repair Station Hacks . | . . . Recycling Unit Hacks . | . . . Scanalyzer . | . . . Garrison Access Hacks . | . . . Unauthorized Hacks . | . . . Terminals . | . . . Fabricators . | . . . Repair Stations . | . . . Recycling Units . | . . . Scanalyzers . | . . . Garrison Access . | . . . Data Cores Recovered . | . . . Used . | . . . Hacking Detections 2 | . 1 1 Full Trace Events . | . . . Feedback Events . | . . . Feedback Blocked . | . . . Robot Schematics Acquired . | . . . Robots Built . | . . . Authchips . | . . . Time . | . . . Total Robot Build Rating . | . . . Part Schematics Acquired . | . . . Parts Built . | . . . Authchips . | . . . Time . | . . . Total Part Build Rating . | . . . Parts Repaired . | . . . Time . | . . . Parts Recycled . | . . . Recycled Matter . | . . . Retrieved Matter . | . . . Retrieved Components . | . . . Parts Scanalyzed . | . . . Part Schematics Acquired . | . . . Parts Damaged . | . . . Bothacking | -11 -10 -9 ------------ Run | Yrd Mat Mat Used RIF Installer . | . . . Robots Hacked . | . . . Non-combat . | . . . Combat . | . . . Robot Hacks Applied . | . . . Relay Couplers Released . | . . . Fabnet Peak Effective % . | . . . Robots Rewired . | . . . Allies Hacked . | . . . Hacks Repelled . | . . . Allies | -11 -10 -9 -------- Run | Yrd Mat Mat Total Allies . | . . . Largest Group . | . . . Highest-Rated Group . | . . . Highest-Rated Ally . | . . . Total Orders . | . . . Ally Attacks . | . . . Total Damage . | . . . Kills . | . . . Allies Corrupted . | . . . Allies Melted . | . . . Intel | -11 -10 -9 ------- Run | Yrd Mat Mat Robot Analysis Total . | . . . Derelict Logs Recovered . | . . . Drone Launches . | . . . Drone Recoveries . | . . . Exploration | -11 -10 -9 ------------- Run | Yrd Mat Mat Turns Passed 650 | 56 112 482 Spaces Moved 366 | 45 90 231 Core 33 | 8 . 25 Treads . | . . . Legs 333 | 37 90 206 Wheels . | . . . Hover . | . . . Flight . | . . . Fastest Speed 50 | 50 120 50 Average Speed 118 | 107 120 120 Slowest Speed 250 | 120 120 250 Overloaded Moves . | . . . Propulsion Burnouts . | . . . Robots Hopped . | . . . Cave-ins Triggered . | . . . Exploration Rate (%) 15 | 3 26 18 Regions Visited 2 Branch Regions . Pre-discovered Areas . | . . . Known Exits Taken . | . . . Unknown Exits Taken 2 | 1 1 . Scrap Searched . | . . . Spaces Dug . | . . . Terrain Destroyed 33 | . . 33 Melee . | . . . Projectile . | . . . AOE 33 | . . 33 Terrain Rammed . | . . . Walls Destroyed . | . . . Machines Disabled . | . . . Actions | -11 -10 -9 --------- Run | Yrd Mat Mat Total 514 | 50 92 372 Wait 78 | . . 78 Move 364 | 44 89 231 Hop . | . . . Pick Up 3 | 1 . 2 Fast Attach 17 | 5 . 12 Attach 1 | . . 1 Detach 3 | . . 3 Swap 5 | . . 5 Drop 6 | . . 6 Fire 33 | . 1 32 Melee . | . . . Ram 1 | . . 1 Kick 3 | . 2 1 Crush . | . . . Escape Stasis . | . . . Rewire . | . . . Trap . | . . . Miscellaneous . | . . . Route ------- -11/Scrapyard -10/Materials -9/Materials (discovered 2 exits: [*Mat] / Min) History --------- Turn | Location | Event 6 | -11/Scrapyard | Discovered new exit (range 15) 57 | -11/Scrapyard | Entered Materials 150 | -10/Materials | Discovered new exit (range 16) 169 | -10/Materials | Entered another Materials area 169 | -9/Materials | Evolved 2 slots: Propulsion x2 182 | -9/Materials | Identified exit to Mines 562 | -9/Materials | Build established: Scavenger-Mutant 583 | -9/Materials | Discovered new exit (range 16) 631 | -9/Materials | Core integrity fell below 50% 643 | -9/Materials | Core integrity fell below 20% 651 | -9/Materials | Destroyed by G-34 Mercenary with Small Laser Last Messages --------------- U-05 Engineer lays Concrete. U-05 Engineer builds a Wall. The unstable cave ceiling collapses. U-05 Engineer builds a Wall. U-05 Engineer lays Concrete. Slammed into Y-45 Defender. Sml. Laser destroyed. U-05 Engineer lays Concrete. U-05 Engineer builds a Wall. Cooling System destroyed. Critical hit (Burn: +37). O-16 Technician uses terminal to summon reinforcements. ALERT: Hostiles spotted, dispatching reinforcements to Terminal M001. O-16 Technician locks terminal. System corrupted: Beam Rifle rejected. U-05 Engineer lays Concrete. U-05 Engineer builds a Wall. ECM Suite destroyed. Map ----- +----------------------------------------------------+ | ??????????????????????????????????????????? | | ??????????????????????????????????????????? | | ??????????????????????????????????????????? | | ??????????????????????????????????????????? | | ??????????????????????????????????????????? | | ??????????????????????????????????????????? | | ??????????????????????????????????????????? | | ??????????????????????????????????????????? | | ??????????????????????????????????????????? | | ??????????????????????????????????????????? | | ???????????????????????? ???????????????? | | ???????????????????????# #??????????????? | | ???????????????????????# #????###???????? | | ???????????????????????# ###### #???????? | | ???????????????????????# # !#???????? | | ???????????????????????# # "T" ##??????? | | ?????????????????????### # +???????? | | ?????????????????????? #] !* #???????? | | ???????????????????????# # ** #???????? | | ???????????????????????# + ###?????? | | ???????????????????????# ### ##????? | | ???????????????????????# # #????? | | ??????????????????????## ## #????? | | ????????############### # #????? | | ????????# g # #????? | | ????????# < g @ [ Y = #????? | | ????????# # #????? | | ????????############### #????? | | ??????????????????????### # # #????? | | ????????????????????????# # #????? | | ????????????????????????# # ##????? | | ????????????????????????# ### ####?????? | | ????????????????????????#%#?######????????? | | ????????????????????????# #???????????????? | | ????????????????????????# #???????????????? | | ????????????????????????# #???????????????? | | ????????????????????????# #???????????????? | | ????????????????????????#!#???????????????? | | ????????????????????????# #???????????????? | | ????????????????????????# #???????????????? | | ????????????? #?????????# #???????????????? | | ???????# ??? #?????????# #???????????????? | | ???????# """ #?????????# #???????????????? | | ???????# """ #########?# #???????????????? | | ??##???# ## %#?# #???????????????? | | ? ??# """ ## [! = ### ##??????????????? | | # """??# """ ## ! %+= #?????????????## | | # """ ?# """ ##[ ! ### #?????????????# | | # """ ?? ??# #?# #?????????????# | | # ###+##??# [% #?# #?????????????# | +----------------------------------------------------+ Best States ------------- Heat Dissipation 72 Energy Generation 14 Energy Capacity 265 Matter Stores 300 Matter Capacity 300 Sight Range 16 Terrain Scan Density 10 ECM Strength 1 Evasion (%) 55 Item Schematics ----------------- None Robot Schematics ------------------ None Fabricated ------------ Nothing Alien Tech Used ----------------- None Achievements -------------- None Challenges ------------ None Game ------ Seed TerrabombCoolantTrap Manual? 0 Play Time 00:07:02 Cumulative 3.9 hours Start 2024.04.20 @ 13:42:50 End 2024.04.20 @ 13:48:56 Sessions 1 Manual Loads 0 Difficulty Rogue Special Mode None Game No. 10 Rogue 10 Adventurer 0 Explorer 0 Win Type - Total 0 Types 0/0/0/0/0/0/0/0/0 Lore% 2 Gallery% 11 Achievement% 11 Wizard Run 0 Options --------- Layout 1 ASCII 0 Keyboard 0 Movement Numpad Keybinds 0 Fullscreen 1 Font 24/Smallcaps Map View 50x35 Zoom Use 0% Tactical HUD 0 Map Filters NONE Filters NONE Steam 1 RUN: 14016c3b-6739-450f-8146-df537c55ef7e